[Event "*** Titled Tuesday Blitz"]
[Site "Chess.com"]
[Date "2020.02.04"]
[Round "8"]
[White "Majkelopulos"]
[Black "Chesstrainer1"]
[Result "1-0"]
[WhiteElo "2487"]
[BlackElo "2363"]
[TimeControl "180+2"]
[EndTime "14:52:30 PST"]
[Termination "Majkelopulos won by resignation"]

1. e4 {[%clk 0:03:01.9]} 1... c5 {[%clk 0:03:00.3]} 2. Ne2 {[%clk 0:03:01.8]}
2... a6 {[%clk 0:02:53.3]} 3. g3 {[%clk 0:03:02.5]} 3... b5 {[%clk 0:02:54.1]}
4. Bg2 {[%clk 0:03:04]} 4... Bb7 {[%clk 0:02:55.5]} 5. O-O {[%clk 0:03:04.5]}
5... Nf6 {[%clk 0:02:54.7]} 6. d3 {[%clk 0:03:05.4]} 6... e6 {[%clk 0:02:53.3]}
7. f4 {[%clk 0:03:02.9]} 7... d5 {[%clk 0:02:37.2]} 8. e5 {[%clk 0:03:03.4]}
8... Nfd7 {[%clk 0:02:38.3]} 9. c3 {[%clk 0:03:04.5]} 9... Nc6 {[%clk
0:02:38.2]} 10. d4 {[%clk 0:03:05.6]} 10... Qb6 {[%clk 0:02:24.6]} 11. Be3
{[%clk 0:03:04.5]} 11... b4 {[%clk 0:02:23]} 12. Nd2 {[%clk 0:03:05]} 12... a5
{[%clk 0:02:22.6]} 13. Nf3 {[%clk 0:02:54.9]} 13... Be7 {[%clk 0:02:11.5]} 14.
g4 {[%clk 0:02:53.6]} 14... h5 {[%clk 0:02:06.6]} 15. h3 {[%clk 0:02:53.5]}
15... hxg4 {[%clk 0:02:02.2]} 16. hxg4 {[%clk 0:02:55.4]} 16... O-O-O {[%clk
0:02:00.9]} 17. Rc1 {[%clk 0:02:53.1]} 17... Kb8 {[%clk 0:01:58.3]} 18. Qd2
{[%clk 0:02:45.3]} 18... a4 {[%clk 0:01:38.4]} 19. f5 {[%clk 0:02:36.9]} 19...
Na5 {[%clk 0:01:36.5]} 20. cxb4 {[%clk 0:02:22.4]} 20... cxb4 {[%clk 0:01:28.3]}
21. Bf4 {[%clk 0:02:14.2]} 21... Nc4 {[%clk 0:01:22.5]} 22. Qc2 {[%clk
0:02:12.3]} 22... b3 {[%clk 0:01:09.6]} 23. axb3 {[%clk 0:02:14.2]} 23... axb3
{[%clk 0:01:11.3]} 24. Qb1 {[%clk 0:02:15.3]} 24... Rc8 {[%clk 0:00:50.7]} 25.
Rfd1 {[%clk 0:02:11.4]} 25... Qa7 {[%clk 0:00:41.2]} 26. Nc3 {[%clk 0:01:49.3]}
26... Qa5 {[%clk 0:00:28.4]} 27. Rd3 {[%clk 0:01:47.5]} 27... Rc6 {[%clk
0:00:26.7]} 28. Nd1 {[%clk 0:01:41.7]} 28... Rb6 {[%clk 0:00:21.2]} 29. Rcc3
{[%clk 0:01:41]} 29... Qa2 {[%clk 0:00:20]} 30. Qc1 {[%clk 0:01:40.9]} 30... Rc8
{[%clk 0:00:13.2]} 31. f6 {[%clk 0:01:36]} 31... gxf6 {[%clk 0:00:13.2]} 32.
exf6+ {[%clk 0:01:37.5]} 32... Bd6 {[%clk 0:00:14.4]} 33. Bxd6+ {[%clk
0:01:37.5]} 33... Nxd6 {[%clk 0:00:15]} 34. g5 {[%clk 0:01:33.4]} 34... Nc4
{[%clk 0:00:12.7]} 35. Qf4+ {[%clk 0:01:28.7]} 35... Ka7 {[%clk 0:00:12.3]} 36.
g6 {[%clk 0:01:28.5]} 36... fxg6 {[%clk 0:00:13.5]} 37. f7 {[%clk 0:01:30]}
37... Rf8 {[%clk 0:00:14.5]} 38. Ng5 {[%clk 0:01:27.2]} 38... Nxb2 {[%clk
0:00:14.6]} 39. Nxb2 {[%clk 0:01:22.6]} 39... Qxb2 {[%clk 0:00:16.5]} 40. Nh7
{[%clk 0:01:24.1]} 40... Ba6 {[%clk 0:00:17.1]} 41. Nxf8 {[%clk 0:01:24.2]}
41... Nxf8 {[%clk 0:00:18.1]} 42. Qc7+ {[%clk 0:01:21.1]} 42... Rb7 {[%clk
0:00:19.1]} 43. Qc5+ {[%clk 0:01:22.2]} 43... Ka8 {[%clk 0:00:20]} 44. Qxf8+
{[%clk 0:01:23.2]} 44... Rb8 {[%clk 0:00:21.4]} 45. Qxb8+ {[%clk 0:01:24.2]} 1-0

[Event "*** Titled Tuesday Blitz"]
[Site "Chess.com"]
[Date "2020.02.04"]
[Round "8"]
[White "VALPARAISO37"]
[Black "Hasangatin_Ramil"]
[Result "0-1"]
[WhiteElo "2274"]
[BlackElo "2538"]
[TimeControl "180+2"]
[EndTime "14:52:48 PST"]
[Termination "Hasangatin_Ramil won on time"]

1. d4 {[%clk 0:03:01.9]} 1... d6 {[%clk 0:02:59.9]} 2. e4 {[%clk 0:02:59.6]}
2... Nf6 {[%clk 0:02:59.9]} 3. f3 {[%clk 0:02:59.1]} 3... d5 {[%clk 0:02:59.1]}
4. e5 {[%clk 0:02:56]} 4... Nfd7 {[%clk 0:02:59.8]} 5. f4 {[%clk 0:02:52.3]}
5... c5 {[%clk 0:03:00.4]} 6. c3 {[%clk 0:02:50.9]} 6... Nc6 {[%clk 0:03:01.4]}
7. Nf3 {[%clk 0:02:50.6]} 7... cxd4 {[%clk 0:02:48]} 8. cxd4 {[%clk 0:02:49.9]}
8... Nb6 {[%clk 0:02:49.9]} 9. a3 {[%clk 0:02:45]} 9... Bf5 {[%clk 0:02:49.3]}
10. Bd3 {[%clk 0:02:41.6]} 10... Qd7 {[%clk 0:02:44.2]} 11. O-O {[%clk
0:02:40.2]} 11... g6 {[%clk 0:02:44.1]} 12. Nc3 {[%clk 0:02:39.1]} 12... Bg7
{[%clk 0:02:43.7]} 13. Be3 {[%clk 0:02:32.9]} 13... O-O {[%clk 0:02:41.6]} 14.
Rc1 {[%clk 0:02:29.8]} 14... Rfc8 {[%clk 0:02:42.3]} 15. Kh1 {[%clk 0:02:28.6]}
15... Nc4 {[%clk 0:02:40.2]} 16. Bxc4 {[%clk 0:02:19.4]} 16... dxc4 {[%clk
0:02:42.1]} 17. d5 {[%clk 0:02:17.7]} 17... Na5 {[%clk 0:02:42.4]} 18. Nd4
{[%clk 0:02:11.2]} 18... Bd3 {[%clk 0:02:41.6]} 19. Rf3 {[%clk 0:02:09.6]} 19...
b5 {[%clk 0:02:36]} 20. Ndxb5 {[%clk 0:02:05.3]} 20... Nb3 {[%clk 0:02:36.9]}
21. Nd4 {[%clk 0:02:00.1]} 21... Nxc1 {[%clk 0:02:33.7]} 22. Bxc1 {[%clk
0:01:58.6]} 22... Rab8 {[%clk 0:02:26.3]} 23. h3 {[%clk 0:01:55.3]} 23... Rb6
{[%clk 0:02:02.8]} 24. Rxd3 {[%clk 0:01:54.3]} 24... cxd3 {[%clk 0:02:02.9]} 25.
Qxd3 {[%clk 0:01:53.8]} 25... Rxc3 {[%clk 0:01:58.9]} 26. Qxc3 {[%clk
0:01:49.5]} 26... Qxd5 {[%clk 0:01:59.8]} 27. Qc8+ {[%clk 0:01:50]} 27... Bf8
{[%clk 0:01:59.9]} 28. f5 {[%clk 0:01:43.3]} 28... gxf5 {[%clk 0:01:58.2]} 29.
e6 {[%clk 0:01:25.3]} 29... Qxd4 {[%clk 0:01:47.8]} 30. Bh6 {[%clk 0:01:23.1]}
30... Qd1+ {[%clk 0:01:48.4]} 31. Kh2 {[%clk 0:01:20.1]} 31... Qd6+ {[%clk
0:01:50.3]} 32. Kh1 {[%clk 0:01:18.1]} 32... Rb8 {[%clk 0:01:46.6]} 33. exf7+
{[%clk 0:01:15.1]} 33... Kxf7 {[%clk 0:01:46.6]} 34. Qxf5+ {[%clk 0:01:14.4]}
34... Qf6 {[%clk 0:01:37.2]} 35. Qxh7+ {[%clk 0:01:13.5]} 35... Ke8 {[%clk
0:01:29.7]} 36. Bxf8 {[%clk 0:01:08.2]} 36... Kxf8 {[%clk 0:01:30.3]} 37. b4
{[%clk 0:01:02.6]} 37... Rd8 {[%clk 0:01:30.2]} 38. Qc2 {[%clk 0:00:59.5]} 38...
Qf1+ {[%clk 0:01:26.3]} 39. Kh2 {[%clk 0:00:58.2]} 39... Qf4+ {[%clk 0:01:27.5]}
40. Kh1 {[%clk 0:00:56.2]} 40... Rd2 {[%clk 0:01:27.1]} 41. Qc8+ {[%clk
0:00:51]} 41... Kf7 {[%clk 0:01:28]} 42. Qc4+ {[%clk 0:00:36.6]} 42... Qxc4
{[%clk 0:01:27.8]} 0-1

[Event "*** Titled Tuesday Blitz"]
[Site "Chess.com"]
[Date "2020.02.04"]
[Round "8"]
[White "Supernotar"]
[Black "jefferyx"]
[Result "1-0"]
[WhiteElo "2614"]
[BlackElo "2919"]
[TimeControl "180+2"]
[EndTime "14:52:49 PST"]
[Termination "Supernotar won by resignation"]

1. d4 {[%clk 0:03:01.9]} 1... d5 {[%clk 0:03:00.5]} 2. c4 {[%clk 0:03:03]} 2...
dxc4 {[%clk 0:03:02.4]} 3. e3 {[%clk 0:03:04]} 3... Nf6 {[%clk 0:03:03.1]} 4.
Bxc4 {[%clk 0:03:05]} 4... e6 {[%clk 0:03:05]} 5. Nf3 {[%clk 0:03:06]} 5... c5
{[%clk 0:03:06.4]} 6. O-O {[%clk 0:03:05.9]} 6... Nc6 {[%clk 0:03:07.7]} 7. Qe2
{[%clk 0:03:06.3]} 7... a6 {[%clk 0:03:08.6]} 8. Rd1 {[%clk 0:03:03.7]} 8... b5
{[%clk 0:03:09.7]} 9. Bd3 {[%clk 0:02:44.6]} 9... c4 {[%clk 0:03:10.1]} 10. Bc2
{[%clk 0:02:44.8]} 10... Nb4 {[%clk 0:03:11.6]} 11. e4 {[%clk 0:02:41.4]} 11...
Bb7 {[%clk 0:03:12.6]} 12. d5 {[%clk 0:02:22.3]} 12... Nxc2 {[%clk 0:03:10.3]}
13. Qxc2 {[%clk 0:01:55.8]} 13... exd5 {[%clk 0:03:11.1]} 14. e5 {[%clk
0:01:52.6]} 14... Ne4 {[%clk 0:02:43.1]} 15. Nc3 {[%clk 0:01:51.9]} 15... Nc5
{[%clk 0:02:41.3]} 16. Nd4 {[%clk 0:01:47.4]} 16... g6 {[%clk 0:02:11.7]} 17. b4
{[%clk 0:01:11.6]} 17... Ne6 {[%clk 0:02:01.2]} 18. Ne4 {[%clk 0:01:01.3]} 18...
dxe4 {[%clk 0:00:57.8]} 19. Nxe6 {[%clk 0:01:00.5]} 19... fxe6 {[%clk
0:00:59.7]} 20. Rxd8+ {[%clk 0:00:59.4]} 20... Rxd8 {[%clk 0:01:01.6]} 21. Bg5
{[%clk 0:00:59.6]} 21... Rd3 {[%clk 0:01:01.7]} 22. Bf6 {[%clk 0:00:53.1]} 22...
Rg8 {[%clk 0:01:03]} 23. a4 {[%clk 0:00:52.7]} 23... Bxb4 {[%clk 0:00:46.8]} 24.
axb5 {[%clk 0:00:52.4]} 24... axb5 {[%clk 0:00:48.7]} 25. Qb2 {[%clk 0:00:45.2]}
25... Rb3 {[%clk 0:00:06.1]} 26. Qd4 {[%clk 0:00:45]} 26... Bd5 {[%clk
0:00:03.9]} 27. Qb6 {[%clk 0:00:38.7]} 27... Ra3 {[%clk 0:00:03.1]} 28. Qxb5+
{[%clk 0:00:36.1]} 28... Kf7 {[%clk 0:00:03]} 29. Qd7+ {[%clk 0:00:32.5]} 29...
Kf8 {[%clk 0:00:04.2]} 30. Rxa3 {[%clk 0:00:23.7]} 30... Bxa3 {[%clk 0:00:06.1]}
31. Qd8+ {[%clk 0:00:24.1]} 31... Kf7 {[%clk 0:00:08]} 32. Qc7+ {[%clk
0:00:24.7]} 32... Kf8 {[%clk 0:00:09.1]} 33. Qb8+ {[%clk 0:00:25.2]} 1-0

[Event "*** Titled Tuesday Blitz"]
[Site "Chess.com"]
[Date "2020.02.04"]
[Round "8"]
[White "IMTominho"]
[Black "LiemLe"]
[Result "1-0"]
[WhiteElo "2819"]
[BlackElo "2940"]
[TimeControl "180+2"]
[EndTime "14:52:57 PST"]
[Termination "IMTominho won by resignation"]

1. d4 {[%clk 0:03:01.9]} 1... Nf6 {[%clk 0:03:00.7]} 2. Nf3 {[%clk 0:03:02.8]}
2... e6 {[%clk 0:03:00.3]} 3. Bf4 {[%clk 0:03:01.4]} 3... b6 {[%clk 0:03:01.5]}
4. e3 {[%clk 0:03:00.8]} 4... Bb7 {[%clk 0:03:03]} 5. Be2 {[%clk 0:03:01.6]}
5... d6 {[%clk 0:02:55.2]} 6. O-O {[%clk 0:03:02.2]} 6... Nbd7 {[%clk
0:02:55.9]} 7. h3 {[%clk 0:03:00.2]} 7... h6 {[%clk 0:02:51.2]} 8. Bh2 {[%clk
0:03:00.6]} 8... g5 {[%clk 0:02:50]} 9. c4 {[%clk 0:02:58.6]} 9... g4 {[%clk
0:02:44.2]} 10. hxg4 {[%clk 0:02:58.2]} 10... Nxg4 {[%clk 0:02:46.1]} 11. Bg3
{[%clk 0:02:57.8]} 11... Rg8 {[%clk 0:02:46.9]} 12. Qd3 {[%clk 0:02:35.2]} 12...
h5 {[%clk 0:02:34.5]} 13. Nc3 {[%clk 0:02:29]} 13... Be7 {[%clk 0:02:34]} 14.
Qh7 {[%clk 0:02:24.2]} 14... Ndf6 {[%clk 0:02:33.7]} 15. Qd3 {[%clk 0:02:24.3]}
15... Nd7 {[%clk 0:02:07.7]} 16. Qh7 {[%clk 0:02:21.1]} 16... Ngf6 {[%clk
0:02:08.7]} 17. Qd3 {[%clk 0:02:17.1]} 17... Nf8 {[%clk 0:02:09.5]} 18. d5
{[%clk 0:02:15.7]} 18... e5 {[%clk 0:02:09.2]} 19. b4 {[%clk 0:02:08.6]} 19...
Ng6 {[%clk 0:02:09.2]} 20. c5 {[%clk 0:02:07]} 20... Ng4 {[%clk 0:02:03.4]} 21.
cxd6 {[%clk 0:01:55.7]} 21... cxd6 {[%clk 0:02:03.1]} 22. Nd2 {[%clk 0:01:57]}
22... Bc8 {[%clk 0:01:59.3]} 23. Rac1 {[%clk 0:01:52.7]} 23... h4 {[%clk
0:01:59.2]} 24. Bh2 {[%clk 0:01:51.7]} 24... Kf8 {[%clk 0:01:47.5]} 25. Bxg4
{[%clk 0:01:45.9]} 25... Bxg4 {[%clk 0:01:49.4]} 26. f3 {[%clk 0:01:42.7]} 26...
Bd7 {[%clk 0:01:49.7]} 27. Kh1 {[%clk 0:01:40.9]} 27... Kg7 {[%clk 0:01:21.7]}
28. Nc4 {[%clk 0:01:31.7]} 28... f5 {[%clk 0:01:17.6]} 29. a4 {[%clk 0:01:23.5]}
29... Rc8 {[%clk 0:00:54.1]} 30. Nb5 {[%clk 0:01:18.7]} 30... Bxb5 {[%clk
0:00:54.9]} 31. axb5 {[%clk 0:01:18.7]} 31... Qd7 {[%clk 0:00:56.5]} 32. Nd2
{[%clk 0:01:16.4]} 32... Bf6 {[%clk 0:00:49.9]} 33. Rc6 {[%clk 0:01:14.6]} 33...
Ne7 {[%clk 0:00:48.4]} 34. Nc4 {[%clk 0:01:12.9]} 34... Nxc6 {[%clk 0:00:41.3]}
35. bxc6 {[%clk 0:01:14.8]} 35... Qe7 {[%clk 0:00:32.2]} 36. Qxf5 {[%clk
0:01:14.9]} 36... b5 {[%clk 0:00:32.4]} 37. Nd2 {[%clk 0:01:13.6]} 37... Qf7
{[%clk 0:00:31.9]} 38. Ne4 {[%clk 0:01:07.7]} 38... Be7 {[%clk 0:00:33.1]} 39.
Qxf7+ {[%clk 0:01:01.3]} 39... Kxf7 {[%clk 0:00:35]} 40. f4 {[%clk 0:01:01.1]}
40... Rg4 {[%clk 0:00:18.4]} 41. Nxd6+ {[%clk 0:00:56.3]} 41... Bxd6 {[%clk
0:00:18.3]} 42. fxe5+ {[%clk 0:00:56.6]} 42... Kg6 {[%clk 0:00:18]} 43. exd6
{[%clk 0:00:56]} 1-0

[Event "*** Titled Tuesday Blitz"]
[Site "Chess.com"]
[Date "2020.02.04"]
[Round "8"]
[White "SCIM"]
[Black "hansen"]
[Result "0-1"]
[WhiteElo "2479"]
[BlackElo "2868"]
[TimeControl "180+2"]
[EndTime "14:53:00 PST"]
[Termination "hansen won by resignation"]

1. d4 {[%clk 0:02:57.3]} 1... Nf6 {[%clk 0:03:01]} 2. c4 {[%clk 0:02:56.5]} 2...
e6 {[%clk 0:03:00.1]} 3. g3 {[%clk 0:02:56.5]} 3... c5 {[%clk 0:02:56.5]} 4. d5
{[%clk 0:02:56.8]} 4... exd5 {[%clk 0:02:58.4]} 5. cxd5 {[%clk 0:02:58.4]} 5...
d6 {[%clk 0:02:59.9]} 6. Nc3 {[%clk 0:03:00.2]} 6... g6 {[%clk 0:03:01.6]} 7.
Nf3 {[%clk 0:03:01.4]} 7... Bg7 {[%clk 0:03:03.4]} 8. Bg2 {[%clk 0:03:03]} 8...
O-O {[%clk 0:03:05.2]} 9. O-O {[%clk 0:03:04.1]} 9... a6 {[%clk 0:03:06.8]} 10.
a4 {[%clk 0:03:04.6]} 10... Re8 {[%clk 0:03:06.9]} 11. Re1 {[%clk 0:03:05]}
11... Nbd7 {[%clk 0:03:01]} 12. Bf4 {[%clk 0:03:00]} 12... Nh5 {[%clk
0:02:53.5]} 13. Bg5 {[%clk 0:02:45.8]} 13... f6 {[%clk 0:02:52.9]} 14. Bd2
{[%clk 0:02:46.1]} 14... f5 {[%clk 0:02:43.9]} 15. Ng5 {[%clk 0:02:41.4]} 15...
Nf8 {[%clk 0:02:36.6]} 16. e4 {[%clk 0:02:35.4]} 16... h6 {[%clk 0:02:03.6]} 17.
Ne6 {[%clk 0:02:34.8]} 17... Bxe6 {[%clk 0:01:56.9]} 18. dxe6 {[%clk 0:02:36.7]}
18... f4 {[%clk 0:01:56.9]} 19. gxf4 {[%clk 0:02:26.1]} 19... Nxe6 {[%clk
0:01:57.1]} 20. Qg4 {[%clk 0:02:12.7]} 20... Qf6 {[%clk 0:01:39.4]} 21. Nd5
{[%clk 0:02:10.2]} 21... Qf7 {[%clk 0:01:40.6]} 22. f5 {[%clk 0:02:05]} 22...
Nf8 {[%clk 0:01:36.6]} 23. fxg6 {[%clk 0:02:00.3]} 23... Qxg6 {[%clk 0:01:33.8]}
24. Qxg6 {[%clk 0:01:59.9]} 24... Nxg6 {[%clk 0:01:35.7]} 25. Nc7 {[%clk
0:01:58.6]} 25... Nhf4 {[%clk 0:01:31.2]} 26. Nxa8 {[%clk 0:01:56.8]} 26... Rxa8
{[%clk 0:01:30.7]} 27. Bc3 {[%clk 0:01:53]} 27... Rf8 {[%clk 0:01:10.5]} 28.
Bxg7 {[%clk 0:01:49.1]} 28... Kxg7 {[%clk 0:01:10.7]} 29. Rad1 {[%clk
0:01:44.7]} 29... Nh4 {[%clk 0:01:11.8]} 30. Re3 {[%clk 0:01:17]} 30... Nhxg2
{[%clk 0:00:59.1]} 31. Rg3+ {[%clk 0:01:16.7]} 31... Kf6 {[%clk 0:00:58.8]} 32.
Rxd6+ {[%clk 0:01:12.9]} 32... Ke5 {[%clk 0:00:59.4]} 33. Rxh6 {[%clk
0:01:12.2]} 33... Rd8 {[%clk 0:01:00.1]} 34. h4 {[%clk 0:01:05.1]} 34... Ne1
{[%clk 0:00:42.2]} 35. Kh2 {[%clk 0:00:44.3]} 35... Rd2 {[%clk 0:00:41]} 36. Rg7
{[%clk 0:00:38.3]} 36... Rxf2+ {[%clk 0:00:35.9]} 37. Kg1 {[%clk 0:00:39]} 37...
Nh3+ {[%clk 0:00:19.8]} 38. Kh1 {[%clk 0:00:38.1]} 38... Nf3 {[%clk 0:00:21.4]}
39. Rh5+ {[%clk 0:00:32]} 39... Kd4 {[%clk 0:00:21.1]} 40. Rd5+ {[%clk 0:00:31]}
40... Ke3 {[%clk 0:00:22.2]} 41. Rg2 {[%clk 0:00:29.9]} 41... Rf1+ {[%clk
0:00:22.4]} 0-1

[Event "*** Titled Tuesday Blitz"]
[Site "Chess.com"]
[Date "2020.02.04"]
[Round "8"]
[White "czasnaszachy"]
[Black "SoltaniciR"]
[Result "0-1"]
[WhiteElo "2314"]
[BlackElo "2479"]
[TimeControl "180+2"]
[EndTime "14:53:11 PST"]
[Termination "SoltaniciR won on time"]

1. d4 {[%clk 0:03:01.9]} 1... Nf6 {[%clk 0:03:00.2]} 2. c4 {[%clk 0:03:01.5]}
2... e6 {[%clk 0:03:01.2]} 3. Nf3 {[%clk 0:03:02.4]} 3... b6 {[%clk 0:03:01.7]}
4. a3 {[%clk 0:03:02.9]} 4... Bb7 {[%clk 0:02:59.4]} 5. Nc3 {[%clk 0:03:03.7]}
5... d5 {[%clk 0:03:00.3]} 6. cxd5 {[%clk 0:03:04.7]} 6... Nxd5 {[%clk
0:03:01.3]} 7. e3 {[%clk 0:03:04.4]} 7... Be7 {[%clk 0:02:59.6]} 8. Bb5+ {[%clk
0:03:04.8]} 8... c6 {[%clk 0:02:58]} 9. Bd3 {[%clk 0:03:05.6]} 9... Nxc3 {[%clk
0:02:52.9]} 10. bxc3 {[%clk 0:03:06]} 10... O-O {[%clk 0:02:53.8]} 11. O-O
{[%clk 0:03:02.4]} 11... c5 {[%clk 0:02:54.9]} 12. Qe2 {[%clk 0:03:02.1]} 12...
Qc7 {[%clk 0:02:38.2]} 13. Ne5 {[%clk 0:02:28.9]} 13... Nd7 {[%clk 0:02:32.4]}
14. f4 {[%clk 0:02:18.9]} 14... Nf6 {[%clk 0:02:23.5]} 15. e4 {[%clk 0:02:15.3]}
15... Rfd8 {[%clk 0:02:06.7]} 16. Bb2 {[%clk 0:02:11.7]} 16... b5 {[%clk
0:01:43.7]} 17. f5 {[%clk 0:02:08]} 17... Qb6 {[%clk 0:01:38.2]} 18. fxe6 {[%clk
0:01:59.8]} 18... fxe6 {[%clk 0:01:38.3]} 19. Kh1 {[%clk 0:01:53.4]} 19... Rf8
{[%clk 0:00:54.9]} 20. Rf3 {[%clk 0:01:44.2]} 20... Rad8 {[%clk 0:00:54.9]} 21.
Rh3 {[%clk 0:01:33.8]} 21... cxd4 {[%clk 0:00:36.8]} 22. Ng4 {[%clk 0:01:13.1]}
22... Nxg4 {[%clk 0:00:16.4]} 23. Qxg4 {[%clk 0:01:13.2]} 23... e5 {[%clk
0:00:17.2]} 24. cxd4 {[%clk 0:01:11.3]} 24... Bc8 {[%clk 0:00:15.9]} 25. Qg3
{[%clk 0:00:53.4]} 25... Bxh3 {[%clk 0:00:16.1]} 26. Qxh3 {[%clk 0:00:54.7]}
26... exd4 {[%clk 0:00:13.6]} 27. e5 {[%clk 0:00:53.1]} 27... Qh6 {[%clk
0:00:14]} 28. Qxh6 {[%clk 0:00:42.2]} 28... gxh6 {[%clk 0:00:15.9]} 29. Kg1
{[%clk 0:00:34.9]} 29... a6 {[%clk 0:00:14.5]} 30. a4 {[%clk 0:00:30.2]} 30...
Bg5 {[%clk 0:00:12.6]} 31. axb5 {[%clk 0:00:23]} 31... Be3+ {[%clk 0:00:13.5]}
32. Kh1 {[%clk 0:00:23.6]} 32... axb5 {[%clk 0:00:15.4]} 33. Bxb5 {[%clk
0:00:18.7]} 33... Rf2 {[%clk 0:00:14.8]} 34. Ba3 {[%clk 0:00:06.2]} 34... d3
{[%clk 0:00:15.1]} 0-1

[Event "*** Titled Tuesday Blitz"]
[Site "Chess.com"]
[Date "2020.02.04"]
[Round "8"]
[White "ural58"]
[Black "vovachesss"]
[Result "0-1"]
[WhiteElo "2375"]
[BlackElo "2571"]
[TimeControl "180+2"]
[EndTime "14:53:13 PST"]
[Termination "vovachesss won by resignation"]

1. e4 {[%clk 0:02:51.7]} 1... e5 {[%clk 0:02:48.7]} 2. f4 {[%clk 0:02:52]} 2...
d5 {[%clk 0:02:47.3]} 3. exd5 {[%clk 0:02:52.5]} 3... exf4 {[%clk 0:02:48]} 4.
Nf3 {[%clk 0:02:53.2]} 4... Nf6 {[%clk 0:02:49.6]} 5. Bb5+ {[%clk 0:02:53.4]}
5... Nbd7 {[%clk 0:02:45.4]} 6. O-O {[%clk 0:02:52]} 6... Be7 {[%clk 0:02:46.7]}
7. d4 {[%clk 0:02:52.3]} 7... O-O {[%clk 0:02:47]} 8. Bxf4 {[%clk 0:02:52.4]}
8... Nxd5 {[%clk 0:02:44.4]} 9. Bd2 {[%clk 0:02:44.2]} 9... c6 {[%clk
0:02:36.3]} 10. Bd3 {[%clk 0:02:43.1]} 10... N7f6 {[%clk 0:02:31.2]} 11. c4
{[%clk 0:02:43.6]} 11... Nb4 {[%clk 0:02:32.4]} 12. Be2 {[%clk 0:02:38.3]} 12...
Bf5 {[%clk 0:02:25.9]} 13. Na3 {[%clk 0:02:36.8]} 13... a5 {[%clk 0:02:14]} 14.
h3 {[%clk 0:02:37.3]} 14... Ne4 {[%clk 0:02:12.8]} 15. Be1 {[%clk 0:02:37.9]}
15... Bf6 {[%clk 0:02:12]} 16. Ne5 {[%clk 0:02:30.6]} 16... Bg6 {[%clk 0:01:50]}
17. Bf3 {[%clk 0:02:22.2]} 17... Nd6 {[%clk 0:01:49.9]} 18. Bc3 {[%clk
0:02:08.5]} 18... Nf5 {[%clk 0:01:45]} 19. Re1 {[%clk 0:01:52.5]} 19... Qc7
{[%clk 0:01:32.2]} 20. g4 {[%clk 0:01:41.5]} 20... Nh4 {[%clk 0:01:25.8]} 21.
Bh1 {[%clk 0:01:34.9]} 21... Rad8 {[%clk 0:01:23.8]} 22. Qe2 {[%clk 0:01:26.4]}
22... Nd3 {[%clk 0:00:41.4]} 23. Nxg6 {[%clk 0:00:50.6]} 23... Qg3+ {[%clk
0:00:31.7]} 24. Bg2 {[%clk 0:00:51.6]} 24... fxg6 {[%clk 0:00:19.1]} 25. Rf1
{[%clk 0:00:38.7]} 25... Nf4 {[%clk 0:00:20.1]} 26. Rxf4 {[%clk 0:00:38.1]}
26... Qxf4 {[%clk 0:00:22]} 27. Nc2 {[%clk 0:00:34.3]} 27... Rde8 {[%clk
0:00:22.5]} 28. Qd3 {[%clk 0:00:21.7]} 28... Bd8 {[%clk 0:00:18.4]} 29. Rf1
{[%clk 0:00:21.6]} 29... Qd6 {[%clk 0:00:12.8]} 30. Ne3 {[%clk 0:00:18.5]} 30...
Bc7 {[%clk 0:00:13.4]} 31. Rxf8+ {[%clk 0:00:16.6]} 31... Rxf8 {[%clk
0:00:15.3]} 32. Nf1 {[%clk 0:00:16.2]} 32... Qf4 {[%clk 0:00:12.9]} 33. Qe3
{[%clk 0:00:14]} 33... Nxg2 {[%clk 0:00:12.3]} 34. Qxf4 {[%clk 0:00:06.8]} 34...
Nxf4 {[%clk 0:00:14.2]} 0-1

[Event "*** Titled Tuesday Blitz"]
[Site "Chess.com"]
[Date "2020.02.04"]
[Round "8"]
[White "Manukyan_Artak"]
[Black "ChessPlayer202202"]
[Result "1-0"]
[WhiteElo "2332"]
[BlackElo "2242"]
[TimeControl "180+2"]
[EndTime "14:53:15 PST"]
[Termination "Manukyan_Artak won by resignation"]

1. e4 {[%clk 0:03:01.9]} 1... e5 {[%clk 0:02:37]} 2. Nf3 {[%clk 0:03:01.1]} 2...
Nc6 {[%clk 0:02:35.7]} 3. d4 {[%clk 0:03:02.2]} 3... exd4 {[%clk 0:02:35.8]} 4.
Nxd4 {[%clk 0:03:04.1]} 4... Nf6 {[%clk 0:02:36.8]} 5. Nxc6 {[%clk 0:03:05.2]}
5... bxc6 {[%clk 0:02:37.3]} 6. e5 {[%clk 0:03:07.1]} 6... Qe7 {[%clk
0:02:37.6]} 7. Qe2 {[%clk 0:03:08.5]} 7... Nd5 {[%clk 0:02:38.9]} 8. c4 {[%clk
0:03:10.1]} 8... Ba6 {[%clk 0:02:39.1]} 9. b3 {[%clk 0:03:11]} 9... g6 {[%clk
0:02:32.9]} 10. Bb2 {[%clk 0:03:11.6]} 10... Bg7 {[%clk 0:02:31]} 11. g3 {[%clk
0:03:11.6]} 11... Qb4+ {[%clk 0:02:25.6]} 12. Qd2 {[%clk 0:03:07.5]} 12... Qxd2+
{[%clk 0:02:25.5]} 13. Nxd2 {[%clk 0:03:07.5]} 13... Nb4 {[%clk 0:02:26.8]} 14.
Kd1 {[%clk 0:03:03.7]} 14... c5 {[%clk 0:02:27]} 15. Bg2 {[%clk 0:02:57.7]}
15... O-O-O {[%clk 0:02:27.4]} 16. Bc3 {[%clk 0:01:55.4]} 16... Nd3 {[%clk
0:02:20.6]} 17. Kc2 {[%clk 0:01:44.2]} 17... Nxf2 {[%clk 0:01:53]} 18. Rhf1
{[%clk 0:01:41.2]} 18... Ng4 {[%clk 0:01:54.1]} 19. Rxf7 {[%clk 0:01:39.7]}
19... Bxe5 {[%clk 0:01:30.2]} 20. Re1 {[%clk 0:01:18.3]} 20... Rde8 {[%clk
0:00:52.5]} 21. Bh3 {[%clk 0:01:12.2]} 21... h5 {[%clk 0:00:51.4]} 22. Bxg4
{[%clk 0:01:10.2]} 22... Bxc3 {[%clk 0:00:26.2]} 23. Bxd7+ {[%clk 0:01:01]}
23... Kd8 {[%clk 0:00:25.6]} 24. Rxe8+ {[%clk 0:01:01.8]} 24... Rxe8 {[%clk
0:00:26.3]} 25. Bxe8 {[%clk 0:01:02.7]} 25... Kxe8 {[%clk 0:00:28.2]} 26. Rxc7
{[%clk 0:01:00.2]} 26... Bd4 {[%clk 0:00:23.8]} 27. Ne4 {[%clk 0:00:56.1]} 27...
Kd8 {[%clk 0:00:21.4]} 28. Rxa7 {[%clk 0:00:54.2]} 28... Bc8 {[%clk 0:00:22.4]}
29. Nd6 {[%clk 0:00:55.3]} 29... Bg4 {[%clk 0:00:21.9]} 30. Kd3 {[%clk 0:00:40]}
30... Bg1 {[%clk 0:00:22.2]} 31. h4 {[%clk 0:00:38.8]} 31... Bf2 {[%clk
0:00:21.6]} 32. Ne4 {[%clk 0:00:39.5]} 32... Bf5 {[%clk 0:00:22.4]} 33. Rg7
{[%clk 0:00:34.3]} 33... Bxg3 {[%clk 0:00:21.6]} 34. a4 {[%clk 0:00:32.9]} 34...
Bxh4 {[%clk 0:00:22]} 35. a5 {[%clk 0:00:34.1]} 35... Bf6 {[%clk 0:00:18.5]} 36.
Rf7 {[%clk 0:00:31]} 36... Be5 {[%clk 0:00:16.3]} 37. a6 {[%clk 0:00:30.9]} 1-0